[Event "Elitserien 2019/2020, round 1-3"]
[Site "Uppsala University, Gamla torget, Uppsala, Sweden"]
[Date "2019.10.20"]
[Round "3.19"]
[White "Heberla, Bartlomiej"]
[Black "Neiksans, Arturs"]
[Result "1-0"]
[TimeControl "90 minutes for 40 moves + 30 minutes for the rest of the game + 30 seconds per move from move one."]
[WhiteTitle "GM"]
[BlackTitle "GM"]
[WhiteFideId "1115120"]
[BlackFideId "11601388"]
[WhiteElo "2552"]
[BlackElo "2577"]

1. e4 {[%clk 01:30:45]} {[%emt 00:00:05]} e5 {[%clk 01:30:54]} {[%emt
00:00:15]} 2. Nf3 {[%clk 01:31:09]} {[%emt 00:00:06]} Nc6 {[%clk 01:31:20]}
{[%emt 00:00:04]} 3. Bb5 {[%clk 01:31:30]} {[%emt 00:00:08]} a6 {[%clk
01:31:44]} {[%emt 00:00:07]} 4. Ba4 {[%clk 01:31:54]} {[%emt 00:00:05]} Nf6
{[%clk 01:32:08]} {[%emt 00:00:08]} 5. O-O {[%clk 01:32:15]} {[%emt 00:00:09]}
Be7 {[%clk 01:32:29]} {[%emt 00:00:09]} 6. d3 {[%clk 01:32:28]} {[%emt
00:00:16]} b5 {[%clk 01:29:16]} {[%emt 00:03:44]} 7. Bb3 {[%clk 01:32:54]}
{[%emt 00:00:02]} d6 {[%clk 01:29:34]} {[%emt 00:00:13]} 8. c3 {[%clk
01:33:21]} {[%emt 00:00:04]} O-O {[%clk 01:29:25]} {[%emt 00:00:39]} 9. Re1
{[%clk 01:33:47]} {[%emt 00:00:04]} Na5 {[%clk 01:25:53]} {[%emt 00:04:03]} 10.
Bc2 {[%clk 01:34:13]} {[%emt 00:00:02]} c5 {[%clk 01:26:17]} {[%emt 00:00:07]}
11. Nbd2 {[%clk 01:34:38]} {[%emt 00:00:04]} Re8 {[%clk 01:25:49]} {[%emt
00:00:58]} 12. Nf1 {[%clk 01:35:05]} {[%emt 00:00:03]} h6 {[%clk 01:24:38]}
{[%emt 00:01:43]} 13. Ng3 {[%emt 00:00:22]} Bf8 {[%clk 01:25:02]} {[%emt
00:00:06]} 14. h3 {[%clk 01:30:37]} {[%emt 00:05:04]} Nc6 {[%clk 01:15:18]}
{[%emt 00:10:15]} 15. d4 {[%clk 01:31:00]} {[%emt 00:00:06]} cxd4 {[%clk
01:08:00]} {[%emt 00:07:49]} 16. cxd4 {[%clk 01:31:26]} {[%emt 00:00:04]} a5
{[%clk 01:01:33]} {[%emt 00:06:57]} 17. Be3 {[%clk 01:24:46]} {[%emt 00:07:09]}
Bd7 {[%clk 00:59:00]} {[%emt 00:03:04]} 18. Rc1 {[%clk 01:17:34]} {[%emt
00:07:43]} a4 {[%clk 00:51:57]} {[%emt 00:07:33]} 19. d5 {[%clk 00:38:55]}
{[%emt 00:39:09]} Nb4 {[%clk 00:51:22]} {[%emt 00:01:04]} 20. Bb1 {[%clk
00:39:03]} {[%emt 00:00:21]} Na6 {[%clk 00:45:09]} {[%emt 00:06:43]} 21. b3
{[%clk 00:28:40]} {[%emt 00:10:53]} axb3 {[%clk 00:40:37]} {[%emt 00:05:02]} 22.
axb3 {[%clk 00:28:29]} {[%emt 00:00:40]} Qa5 {[%clk 00:41:01]} {[%emt
00:00:06]} 23. Nh4 {[%clk 00:26:19]} {[%emt 00:02:41]} g6 {[%clk 00:29:37]}
{[%emt 00:11:54]} 24. f4 {[%clk 00:25:47]} {[%emt 00:01:03]} exf4 {[%clk
00:29:55]} {[%emt 00:00:12]} 25. Bxf4 {[%clk 00:26:08]} {[%emt 00:00:08]} Qb4
{[%clk 00:29:22]} {[%emt 00:01:03]} 26. Bd2 {[%clk 00:22:51]} {[%emt 00:03:47]}
Qd4+ {[%clk 00:28:41]} {[%emt 00:01:11]} 27. Kh2 {[%clk 00:22:49]} {[%emt
00:00:32]} Rac8 {[%clk 00:28:30]} {[%emt 00:00:40]} 28. Nf3 {[%clk 00:18:55]}
{[%emt 00:04:24]} Qb2 {[%clk 00:27:05]} {[%emt 00:01:55]} 29. Rxc8 {[%clk
00:19:09]} {[%emt 00:00:17]} Rxc8 {[%clk 00:26:30]} {[%emt 00:01:05]} 30. Be3
{[%clk 00:19:05]} {[%emt 00:00:34]} Bg7 {[%clk 00:23:10]} {[%emt 00:03:50]} 31.
Re2 {[%clk 00:13:37]} {[%emt 00:05:57]} Qc3 {[%clk 00:23:12]} {[%emt 00:00:28]}
32. Bd2 {[%clk 00:13:54]} {[%emt 00:00:12]} Qc5 {[%clk 00:22:05]} {[%emt
00:01:37]} 33. Qe1 {[%clk 00:13:51]} {[%emt 00:00:33]} b4 {[%clk 00:07:52]}
{[%emt 00:14:44]} 34. Bd3 {[%clk 00:13:44]} {[%emt 00:00:36]} Qb6 {[%clk
00:08:18]} {[%emt 00:00:05]} 35. Be3 {[%clk 00:11:20]} {[%emt 00:02:54]} Qb7
{[%clk 00:06:04]} {[%emt 00:02:44]} 36. Bd4 {[%clk 00:10:22]} {[%emt 00:01:28]}
Bb5 {[%clk 00:04:53]} {[%emt 00:01:12]} 37. Bxb5 {[%clk 00:09:42]} {[%emt
00:01:10]} Qxb5 {[%clk 00:05:49]} {[%emt 00:00:04]} 38. Qa1 {[%clk 00:10:03]}
{[%emt 00:00:09]} Ne8 {[%clk 00:04:59]} {[%emt 00:01:21]} 39. Bxg7 {[%clk
00:05:24]} {[%emt 00:05:10]} Nxg7 {[%clk 00:05:24]} {[%emt 00:00:04]} 40. Qf6
{[%clk 00:04:59]} {[%emt 00:00:54]} Nc5 {[%clk 00:02:13]} {[%emt 00:03:41]} 41.
Qf4 {[%clk 00:21:40]} {[%emt 00:13:49]} Nxb3 {[%clk 00:09:45]} {[%emt
00:22:59]} 42. Qxh6 {[%clk 00:19:40]} {[%emt 00:02:29]} Qd3 {[%clk 00:10:12]}
{[%emt 00:00:04]} 43. Rf2 {[%clk 00:10:14]} {[%emt 00:09:56]} Rc3 {[%clk
00:02:05]} {[%emt 00:08:38]} 44. Ra2 {[%clk 00:10:24]} {[%emt 00:00:19]} Rc8
{[%clk 00:01:44]} {[%emt 00:00:52]} 45. Ng5 {[%clk 00:09:36]} {[%emt 00:01:17]}
Qc3 {[%clk 00:00:46]} {[%emt 00:01:28]} 46. Ra7 {[%clk 00:08:45]} {[%emt
00:01:21]} Rc7 {[%clk 00:00:36]} {[%emt 00:00:40]} 47. Ra8+ {[%clk 00:09:09]}
{[%emt 00:00:06]} 1-0

[Event "Elitserien 2019/2020, round 1-3"]
[Site "Uppsala University, Gamla torget, Uppsala, Sweden"]
[Date "2019.10.20"]
[Round "3.20"]
[White "Barkhagen, Jonas"]
[Black "Gajic, Mladen"]
[Result "1-0"]
[TimeControl "90 minutes for 40 moves + 30 minutes for the rest of the game + 30 seconds per move from move one."]
[WhiteTitle "IM"]
[BlackTitle "FM"]
[WhiteFideId "1700855"]
[BlackFideId "1709178"]
[WhiteElo "2427"]
[BlackElo "2303"]

1. d4 {[%clk 01:30:57]} {[%emt 00:00:01]} d6 {[%clk 01:22:02]} {[%emt
00:08:59]} 2. e4 {[%clk 01:29:10]} {[%emt 00:02:16]} Nf6 {[%clk 01:20:57]}
{[%emt 00:01:37]} 3. Nc3 {[%clk 01:29:30]} {[%emt 00:00:09]} e5 {[%clk
01:21:22]} {[%emt 00:00:05]} 4. Nf3 {[%clk 01:29:03]} {[%emt 00:00:57]} Nbd7
{[%clk 01:21:41]} {[%emt 00:00:12]} 5. Bc4 {[%clk 01:28:14]} {[%emt 00:01:18]}
Be7 {[%clk 01:22:06]} {[%emt 00:00:07]} 6. O-O {[%clk 01:27:47]} {[%emt
00:00:56]} O-O {[%clk 01:22:29]} {[%emt 00:00:06]} 7. Qe2 {[%clk 01:17:59]}
{[%emt 00:10:18]} c6 {[%clk 01:20:00]} {[%emt 00:02:59]} 8. a4 {[%clk
01:18:19]} {[%emt 00:00:10]} a5 {[%clk 01:14:22]} {[%emt 00:06:09]} 9. Rd1
{[%clk 01:12:26]} {[%emt 00:06:23]} Qc7 {[%clk 01:11:11]} {[%emt 00:03:41]} 10.
h3 {[%clk 01:12:25]} {[%emt 00:00:30]} h6 {[%clk 01:08:00]} {[%emt 00:03:41]}
11. dxe5 {[%clk 01:07:11]} {[%emt 00:05:44]} dxe5 {[%clk 01:02:10]} {[%emt
00:06:19]} 12. Nh4 {[%clk 01:07:01]} {[%emt 00:00:42]} Bb4 {[%clk 00:29:43]}
{[%emt 00:32:57]} 13. Na2 {[%clk 00:44:51]} {[%emt 00:22:40]} Bc5 {[%clk
00:24:24]} {[%emt 00:05:49]} 14. Qf3 {[%clk 00:44:17]} {[%emt 00:01:03]} Nb6
{[%clk 00:21:49]} {[%emt 00:03:04]} 15. Bb3 {[%clk 00:44:41]} {[%emt 00:00:07]}
Kh7 {[%clk 00:17:42]} {[%emt 00:04:37]} 16. Nf5 {[%clk 00:40:26]} {[%emt
00:04:44]} Ng8 {[%clk 00:17:39]} {[%emt 00:00:33]} 17. Be3 {[%clk 00:33:18]}
{[%emt 00:07:37]} Bxe3 {[%clk 00:17:35]} {[%emt 00:00:35]} 18. Nxe3 {[%clk
00:33:32]} {[%emt 00:00:15]} Be6 {[%clk 00:14:46]} {[%emt 00:03:20]} 19. Nc1
{[%clk 00:26:02]} {[%emt 00:08:01]} Rad8 {[%clk 00:09:40]} {[%emt 00:05:36]} 20.
Rxd8 {[%clk 00:20:49]} {[%emt 00:05:43]} Qxd8 {[%clk 00:09:56]} {[%emt
00:00:14]} 21. Ng4 {[%clk 00:21:03]} {[%emt 00:00:14]} Bxg4 {[%clk 00:07:59]}
{[%emt 00:02:29]} 22. Qxg4 {[%clk 00:17:20]} {[%emt 00:04:13]} Qe7 {[%clk
00:07:51]} {[%emt 00:00:39]} 23. Nd3 {[%clk 00:13:45]} {[%emt 00:04:06]} g6
{[%clk 00:06:06]} {[%emt 00:02:14]} 24. Qg3 {[%clk 00:13:22]} {[%emt 00:00:52]}
Re8 {[%clk 00:04:56]} {[%emt 00:01:40]} 25. Qe3 {[%clk 00:12:19]} {[%emt
00:01:33]} Nc8 {[%clk 00:05:20]} {[%emt 00:00:07]} 26. Qc5 {[%clk 00:11:00]}
{[%emt 00:01:49]} Qc7 {[%clk 00:04:05]} {[%emt 00:01:46]} 27. Qc3 {[%clk
00:09:31]} {[%emt 00:01:59]} Nf6 {[%clk 00:03:06]} {[%emt 00:01:29]} 28. Re1
{[%clk 00:09:53]} {[%emt 00:00:07]} Nd6 {[%clk 00:01:53]} {[%emt 00:01:44]} 29.
f3 {[%clk 00:09:33]} {[%emt 00:00:50]} Re7 {[%clk 00:01:44]} {[%emt 00:00:39]}
30. Kh1 {[%clk 00:04:59]} {[%emt 00:05:03]} Nde8 {[%clk 00:00:39]} {[%emt
00:01:36]} 31. Nc5 {[%clk 00:03:34]} {[%emt 00:01:55]} Nh5 {[%clk 00:00:52]}
{[%emt 00:00:16]} 32. Rd1 {[%clk 00:03:02]} {[%emt 00:01:03]} b6 {[%clk
00:00:50]} {[%emt 00:00:33]} 33. Nd3 {[%clk 00:03:23]} {[%emt 00:00:07]} Ng3+
{[%clk 00:00:52]} {[%emt 00:00:29]} 34. Kh2 {[%clk 00:03:47]} {[%emt 00:00:06]}
Ne2 {[%clk 00:01:19]} {[%emt 00:00:04]} 35. Qd2 {[%clk 00:03:29]} {[%emt
00:00:46]} Nd4 {[%clk 00:01:38]} {[%emt 00:00:14]} 36. Ba2 {[%clk 00:03:47]}
{[%emt 00:00:12]} Ng7 {[%clk 00:01:07]} {[%emt 00:01:01]} 37. c3 {[%clk
00:03:30]} {[%emt 00:00:46]} Nde6 {[%clk 00:01:31]} {[%emt 00:00:07]} 38. Nf2
{[%clk 00:02:54]} {[%emt 00:01:06]} Nc5 {[%clk 00:01:40]} {[%emt 00:00:21]} 39.
Qc2 {[%clk 00:02:14]} {[%emt 00:01:10]} h5 {[%clk 00:01:26]} {[%emt 00:00:44]}
40. b4 {[%clk 00:01:53]} {[%emt 00:00:50]} Nce6 {[%clk 00:00:39]} {[%emt
00:01:18]} 41. Qb2 {[%clk 00:25:22]} {[%emt 00:07:00]} Rd7 {[%clk 00:29:03]}
{[%emt 00:02:06]} 42. b5 {[%clk 00:15:06]} {[%emt 00:10:46]} Rxd1 {[%clk
00:24:56]} {[%emt 00:04:37]} 43. Nxd1 {[%clk 00:15:31]} {[%emt 00:00:05]} Nc5
{[%clk 00:19:03]} {[%emt 00:06:23]} 44. bxc6 {[%clk 00:15:34]} {[%emt
00:00:27]} Qxc6 {[%clk 00:18:52]} {[%emt 00:00:41]} 45. Bxf7 {[%clk 00:15:47]}
{[%emt 00:00:15]} Nxa4 {[%clk 00:18:37]} {[%emt 00:00:46]} 46. Qd2 {[%clk
00:12:52]} {[%emt 00:03:24]} Qf6 {[%clk 00:15:57]} {[%emt 00:03:10]} 47. Qd5
{[%clk 00:10:09]} {[%emt 00:03:14]} h4 {[%clk 00:14:39]} {[%emt 00:01:49]} 48.
Kg1 {[%clk 00:07:55]} {[%emt 00:02:43]} Nh5 {[%clk 00:03:44]} {[%emt 00:11:27]}
49. Qd7 {[%clk 00:06:48]} {[%emt 00:01:36]} Nc5 {[%clk 00:04:10]} {[%emt
00:00:04]} 50. Qe8 {[%clk 00:07:12]} {[%emt 00:00:05]} Ng7 {[%clk 00:03:21]}
{[%emt 00:01:20]} 51. Qg8+ {[%clk 00:05:51]} {[%emt 00:01:51]} Kh6 {[%clk
00:03:50]} {[%emt 00:00:01]} 52. Nf2 {[%clk 00:05:17]} {[%emt 00:01:02]} Qf4
{[%clk 00:02:36]} {[%emt 00:01:45]} 53. Ng4+ {[%clk 00:05:31]} {[%emt
00:00:15]} Kg5 {[%clk 00:02:58]} {[%emt 00:00:09]} 54. Qd8+ {[%clk 00:05:54]}
{[%emt 00:00:07]} Kh5 {[%clk 00:03:21]} {[%emt 00:00:07]} 55. Qh8+ {[%clk
00:06:18]} {[%emt 00:00:06]} 1-0

[Event "Elitserien 2019/2020, round 1-3"]
[Site "Uppsala University, Gamla torget, Uppsala, Sweden"]
[Date "2019.10.20"]
[Round "3.21"]
[White "Rothen, Hakan"]
[Black "Wiedenkeller, Michael"]
[Result "0-1"]
[TimeControl "90 minutes for 40 moves + 30 minutes for the rest of the game + 30 seconds per move from move one."]
[WhiteTitle "FM"]
[BlackTitle "IM"]
[WhiteFideId "1700723"]
[BlackFideId "1700146"]
[WhiteElo "2251"]
[BlackElo "2459"]

1. d4 {[%clk 01:30:55]} {[%emt 00:00:05]} Nf6 {[%clk 01:30:12]} {[%emt
00:00:48]} 2. Nf3 {[%clk 01:31:18]} {[%emt 00:00:07]} d5 {[%clk 01:30:15]}
{[%emt 00:00:27]} 3. e3 {[%clk 01:31:42]} {[%emt 00:00:06]} e6 {[%clk
01:29:00]} {[%emt 00:01:44]} 4. Bd3 {[%clk 01:31:16]} {[%emt 00:00:56]} c5
{[%clk 01:23:49]} {[%emt 00:05:40]} 5. b3 {[%clk 01:31:10]} {[%emt 00:00:36]}
Be7 {[%clk 01:23:23]} {[%emt 00:00:57]} 6. Bb2 {[%clk 01:31:19]} {[%emt
00:00:21]} b6 {[%clk 01:19:30]} {[%emt 00:04:22]} 7. Ne5 {[%clk 01:27:49]}
{[%emt 00:04:01]} O-O {[%clk 01:15:15]} {[%emt 00:04:45]} 8. O-O {[%clk
01:27:04]} {[%emt 00:01:15]} Bb7 {[%clk 01:14:57]} {[%emt 00:00:47]} 9. Nd2
{[%clk 01:24:17]} {[%emt 00:03:18]} Nbd7 {[%clk 01:12:53]} {[%emt 00:02:34]} 10.
Qf3 {[%clk 01:09:16]} {[%emt 00:15:32]} Nxe5 {[%clk 01:05:14]} {[%emt
00:08:09]} 11. dxe5 {[%clk 01:09:14]} {[%emt 00:00:32]} Nd7 {[%clk 01:05:06]}
{[%emt 00:00:38]} 12. Qh3 {[%clk 00:59:27]} {[%emt 00:10:18]} g6 {[%clk
01:04:04]} {[%emt 00:01:32]} 13. f4 {[%clk 00:59:14]} {[%emt 00:00:42]} Qc7
{[%clk 00:39:37]} {[%emt 00:24:57]} 14. f5 {[%clk 00:52:58]} {[%emt 00:06:46]}
exf5 {[%clk 00:39:27]} {[%emt 00:00:41]} 15. Rxf5 {[%clk 00:51:35]} {[%emt
00:01:53]} d4 {[%clk 00:38:08]} {[%emt 00:01:49]} 16. Nc4 {[%clk 00:45:34]}
{[%emt 00:06:29]} Bd5 {[%clk 00:30:28]} {[%emt 00:08:10]} 17. Rh5 {[%clk
00:35:53]} {[%emt 00:10:11]} Be6 {[%clk 00:28:08]} {[%emt 00:02:50]} 18. Qg3
{[%clk 00:24:15]} {[%emt 00:12:09]} Rfd8 {[%clk 00:21:35]} {[%emt 00:07:01]} 19.
Rf1 {[%clk 00:22:41]} {[%emt 00:02:05]} Nf8 {[%clk 00:21:03]} {[%emt 00:01:02]}
20. Bf5 {[%clk 00:20:58]} {[%emt 00:02:13]} Bxc4 {[%clk 00:17:37]} {[%emt
00:03:56]} 21. bxc4 {[%clk 00:21:20]} {[%emt 00:00:08]} dxe3 {[%clk 00:17:11]}
{[%emt 00:00:56]} 22. Be4 {[%clk 00:20:08]} {[%emt 00:01:41]} e2 {[%clk
00:13:47]} {[%emt 00:03:55]} 23. Re1 {[%clk 00:20:07]} {[%emt 00:00:30]} Ne6
{[%clk 00:11:47]} {[%emt 00:02:30]} 24. Bxa8 {[%clk 00:17:54]} {[%emt
00:02:43]} Rxa8 {[%clk 00:12:09]} {[%emt 00:00:08]} 25. Qf3 {[%clk 00:17:48]}
{[%emt 00:00:37]} Rd8 {[%clk 00:10:46]} {[%emt 00:01:54]} 26. Rh3 {[%clk
00:12:10]} {[%emt 00:06:08]} Ng5 {[%clk 00:10:14]} {[%emt 00:01:02]} 27. Qxe2
{[%clk 00:12:32]} {[%emt 00:00:07]} Nxh3+ {[%clk 00:10:35]} {[%emt 00:00:09]}
28. gxh3 {[%clk 00:12:58]} {[%emt 00:00:05]} Qd7 {[%clk 00:09:47]} {[%emt
00:01:17]} 29. e6 {[%clk 00:09:29]} {[%emt 00:03:59]} Qxe6 {[%clk 00:09:52]}
{[%emt 00:00:25]} 30. Qxe6 {[%clk 00:09:52]} {[%emt 00:00:06]} fxe6 {[%clk
00:10:17]} {[%emt 00:00:05]} 31. Rxe6 {[%clk 00:10:17]} {[%emt 00:00:05]} Rd1+
{[%clk 00:08:03]} {[%emt 00:02:44]} 32. Kf2 {[%clk 00:10:23]} {[%emt 00:00:24]}
Rd2+ {[%clk 00:07:19]} {[%emt 00:01:14]} 33. Re2 {[%clk 00:10:39]} {[%emt
00:00:14]} Rxe2+ {[%clk 00:07:33]} {[%emt 00:00:17]} 34. Kxe2 {[%clk 00:11:03]}
{[%emt 00:00:05]} Bd6 {[%clk 00:08:00]} {[%emt 00:00:03]} 35. Kf3 {[%clk
00:08:50]} {[%emt 00:02:43]} Kf7 {[%clk 00:07:42]} {[%emt 00:00:48]} 36. Ke4
{[%clk 00:08:18]} {[%emt 00:01:02]} Ke6 {[%clk 00:07:51]} {[%emt 00:00:21]} 37.
Bc1 {[%clk 00:06:41]} {[%emt 00:02:07]} Bxh2 {[%clk 00:07:35]} {[%emt
00:00:47]} 38. Bg5 {[%clk 00:06:12]} {[%emt 00:00:59]} Be5 {[%clk 00:05:41]}
{[%emt 00:02:23]} 39. a4 {[%clk 00:06:17]} {[%emt 00:00:25]} Bc7 {[%clk
00:03:26]} {[%emt 00:02:45]} 40. Bd2 {[%clk 00:03:07]} {[%emt 00:03:41]} Bd8
{[%clk 00:02:08]} {[%emt 00:01:49]} 41. Bf4 {[%clk 00:02:54]} {[%emt 00:00:42]}
h5 {[%clk 00:27:07]} {[%emt 00:05:31]} 42. Bb8 {[%clk 00:30:36]} {[%emt
00:02:48]} a6 {[%clk 00:23:39]} {[%emt 00:03:59]} 43. Bf4 {[%clk 00:24:41]}
{[%emt 00:06:24]} g5 {[%clk 00:22:02]} {[%emt 00:02:07]} 44. Be3 {[%clk
00:20:56]} {[%emt 00:04:16]} Kf6 {[%clk 00:19:54]} {[%emt 00:02:37]} 45. Bf2
{[%clk 00:18:12]} {[%emt 00:03:13]} Bc7 {[%clk 00:19:02]} {[%emt 00:01:22]} 46.
Kd5 {[%clk 00:15:27]} {[%emt 00:03:16]} Ke7 {[%clk 00:12:57]} {[%emt 00:06:35]}
47. Kc6 {[%clk 00:08:22]} {[%emt 00:07:36]} Kd8 {[%clk 00:12:51]} {[%emt
00:00:35]} 48. Kb7 {[%clk 00:08:40]} {[%emt 00:00:11]} Kd7 {[%clk 00:08:24]}
{[%emt 00:04:58]} 49. Be3 {[%clk 00:05:03]} {[%emt 00:04:07]} g4 {[%clk
00:08:09]} {[%emt 00:00:45]} 50. hxg4 {[%clk 00:04:49]} {[%emt 00:00:44]} hxg4
{[%clk 00:08:22]} {[%emt 00:00:17]} 51. Bf2 {[%clk 00:03:44]} {[%emt 00:01:35]}
a5 {[%clk 00:05:12]} {[%emt 00:03:40]} 52. Be1 {[%clk 00:02:48]} {[%emt
00:01:27]} g3 {[%clk 00:04:41]} {[%emt 00:01:01]} 53. Bd2 {[%clk 00:02:48]}
{[%emt 00:00:29]} Be5 {[%clk 00:03:14]} {[%emt 00:01:58]} 54. Be3 {[%clk
00:02:23]} {[%emt 00:00:55]} Bd4 {[%clk 00:02:09]} {[%emt 00:01:35]} 55. Bf4
{[%clk 00:02:47]} {[%emt 00:00:06]} g2 {[%clk 00:02:34]} {[%emt 00:00:05]} 56.
Bh2 {[%clk 00:03:14]} {[%emt 00:00:03]} Ke6 {[%clk 00:02:13]} {[%emt 00:00:51]}
57. Kxb6 {[%clk 00:03:04]} {[%emt 00:00:40]} Kf5 {[%clk 00:02:38]} {[%emt
00:00:05]} 58. c3 {[%clk 00:02:45]} {[%emt 00:00:50]} Be3 {[%clk 00:02:29]}
{[%emt 00:00:39]} 59. Kxa5 {[%clk 00:02:42]} {[%emt 00:00:33]} Kg4 {[%clk
00:02:54]} {[%emt 00:00:04]} 60. Kb6 {[%clk 00:02:33]} {[%emt 00:00:38]} Kh3
{[%clk 00:03:15]} {[%emt 00:00:10]} 61. a5 {[%clk 00:02:45]} {[%emt 00:00:18]}
Kxh2 {[%clk 00:03:39]} {[%emt 00:00:06]} 62. a6 {[%clk 00:03:09]} {[%emt
00:00:05]} g1=Q {[%clk 00:04:01]} {[%emt 00:00:09]} 63. a7 {[%clk 00:03:32]}
{[%emt 00:00:06]} Qg2 {[%emt 00:00:16]} 0-1

[Event "Elitserien 2019/2020, round 1-3"]
[Site "Uppsala University, Gamla torget, Uppsala, Sweden"]
[Date "2019.10.20"]
[Round "3.22"]
[White "Bator, Robert"]
[Black "Thornert, Hakan"]
[Result "1/2-1/2"]
[TimeControl "90 minutes for 40 moves + 30 minutes for the rest of the game + 30 seconds per move from move one."]
[WhiteTitle "IM"]
[WhiteFideId "1700405"]
[BlackFideId "1703749"]
[WhiteElo "2358"]
[BlackElo "2183"]

1. Nf3 {[%clk 01:30:42]} {[%emt 00:00:16]} d5 {[%clk 01:30:16]} {[%emt
00:00:44]} 2. c4 {[%clk 01:31:01]} {[%emt 00:00:11]} d4 {[%clk 01:30:28]}
{[%emt 00:00:18]} 3. b4 {[%clk 01:30:02]} {[%emt 00:01:28]} g6 {[%clk
01:30:20]} {[%emt 00:00:37]} 4. Qa4+ {[%clk 01:14:29]} {[%emt 00:16:03]} c6
{[%clk 01:27:15]} {[%emt 00:03:35]} 5. Bb2 {[%clk 01:14:39]} {[%emt 00:00:20]}
Bg7 {[%clk 01:27:27]} {[%emt 00:00:18]} 6. e3 {[%clk 01:09:20]} {[%emt
00:05:49]} e5 {[%clk 01:27:39]} {[%emt 00:00:18]} 7. Be2 {[%clk 01:05:19]}
{[%emt 00:04:32]} Ne7 {[%clk 01:25:22]} {[%emt 00:02:47]} 8. O-O {[%clk
01:04:33]} {[%emt 00:01:15]} O-O {[%clk 01:24:39]} {[%emt 00:01:12]} 9. Na3
{[%clk 01:01:25]} {[%emt 00:03:39]} Nf5 {[%clk 01:19:09]} {[%emt 00:06:00]} 10.
e4 {[%clk 00:57:22]} {[%emt 00:04:32]} Nh4 {[%clk 01:18:01]} {[%emt 00:01:37]}
11. Ne1 {[%clk 00:52:33]} {[%emt 00:05:20]} f5 {[%clk 01:12:09]} {[%emt
00:06:22]} 12. d3 {[%clk 00:49:10]} {[%emt 00:03:53]} f4 {[%clk 01:10:13]}
{[%emt 00:02:25]} 13. f3 {[%clk 00:47:08]} {[%emt 00:02:33]} g5 {[%clk
01:09:02]} {[%emt 00:01:41]} 14. c5 {[%clk 00:47:08]} {[%emt 00:00:30]} h5
{[%clk 01:00:04]} {[%emt 00:09:27]} 15. Nc4 {[%clk 00:44:50]} {[%emt 00:02:48]}
g4 {[%clk 00:59:51]} {[%emt 00:00:43]} 16. Nd6 {[%clk 00:37:34]} {[%emt
00:07:46]} g3 {[%clk 00:57:26]} {[%emt 00:02:55]} 17. Qb3+ {[%clk 00:32:05]}
{[%emt 00:05:59]} Kh7 {[%clk 00:56:13]} {[%emt 00:01:41]} 18. Nxc8 {[%clk
00:23:31]} {[%emt 00:09:05]} gxh2+ {[%clk 00:51:41]} {[%emt 00:05:02]} 19. Kxh2
{[%clk 00:23:23]} {[%emt 00:00:38]} Qxc8 {[%clk 00:51:55]} {[%emt 00:00:16]} 20.
Rh1 {[%clk 00:23:27]} {[%emt 00:00:26]} Qd8 {[%clk 00:47:39]} {[%emt 00:04:43]}
21. Kg1 {[%clk 00:22:06]} {[%emt 00:01:54]} Qg5 {[%clk 00:47:20]} {[%emt
00:00:49]} 22. Qe6 {[%clk 00:20:17]} {[%emt 00:02:19]} Bf6 {[%clk 00:42:28]}
{[%emt 00:05:21]} 23. Bf1 {[%clk 00:17:05]} {[%emt 00:03:43]} Rg8 {[%clk
00:40:32]} {[%emt 00:02:26]} 24. Kf2 {[%clk 00:17:08]} {[%emt 00:00:28]} Na6
{[%clk 00:37:32]} {[%emt 00:03:30]} 25. Qc4 {[%clk 00:15:33]} {[%emt 00:02:04]}
Nc7 {[%clk 00:35:29]} {[%emt 00:02:32]} 26. a4 {[%clk 00:14:13]} {[%emt
00:01:51]} a6 {[%clk 00:35:38]} {[%emt 00:00:21]} 27. Bc1 {[%clk 00:14:10]}
{[%emt 00:00:33]} Qg3+ {[%clk 00:28:57]} {[%emt 00:07:10]} 28. Ke2 {[%clk
00:14:29]} {[%emt 00:00:13]} Qg7 {[%clk 00:29:01]} {[%emt 00:00:25]} 29. Bd2
{[%clk 00:14:10]} {[%emt 00:00:50]} Qe7 {[%clk 00:28:08]} {[%emt 00:01:21]} 30.
Rh2 {[%clk 00:11:41]} {[%emt 00:03:00]} Rg7 {[%clk 00:26:13]} {[%emt 00:02:24]}
31. Nc2 {[%clk 00:10:18]} {[%emt 00:01:54]} Rag8 {[%clk 00:25:53]} {[%emt
00:00:49]} 32. Ne1 {[%clk 00:09:21]} {[%emt 00:01:28]} Bg5 {[%clk 00:25:27]}
{[%emt 00:00:55]} 33. Nc2 {[%clk 00:08:39]} {[%emt 00:01:14]} Kh6 {[%clk
00:23:25]} {[%emt 00:02:32]} 34. Ne1 {[%clk 00:08:36]} {[%emt 00:00:33]} Kh7
{[%clk 00:20:16]} 1/2-1/2